bitfinex/quotes_SOLUSD_20251013
["timestamp","ask_amount","ask_price","bid_price","bid_amount"]
[1760382081863,0.66,206.15,206.11,16.98122361]
[1760382082064,0.66,206.17,206.14,5.88175841]
[1760382082383,6.54175841,206.21,206.14,5.88175841]
[1760382082675,11.53647521,206.2,206.15,5.88175841]
[1760382082882,11.53647521,206.2,206.11,25.65177817]
[1760382082883,10.87647521,206.18,206.13,5.88175841]
[1760382083175,10.87647521,206.16,206.08,4.85229597]
[1760382083380,0.66,206.17,206.05,4.85319097]
[1760382083381,10.87647521,206.14,206.05,4.85319097]
[1760382083678,9.48,206.13,206.05,4.85319097]
[1760382084178,10.87647521,206.11,206.07,5.88175841]
[1760382084358,9.48,206.1,206.05,10.73494938]
[1760382084677,10.87647521,206.08,206.07,5.88175841]
[1760382084850,20.8,206.18,206.07,5.88175841]
[1760382085054,10.87647521,206.16,206.1,5.88175841]
[1760382085280,16.8361973,206.22,206.14,5.88175841]
[1760382085477,10.87647521,206.18,206.16,4.85060147]
[1760382085661,11.53647521,206.17,206.16,4.85060147]
[1760382085859,10.87647521,206.17,206.16,4.85060147]
[1760382086787,10.87647521,206.17,206.16,10.73235988]
[1760382087763,11.53647521,206.17,206.16,5.88175841]
[1760382087969,10.87647521,206.16,206.09,16.98287155]
[1760382088174,10.87647521,206.14,206.12,5.88175841]
[1760382088684,11.53647521,206.16,206.13,5.88175841]
[1760382088889,10.87647521,206.16,206.14,5.88175841]
[1760382089075,0.66,206.16,206.15,5.88175841]
[1760382089275,11.53647521,206.16,206.15,5.88175841]
[1760382090073,11.53647521,206.16,206.14,10.73261264]
[1760382090278,0.66,206.15,206.14,10.73261264]
[1760382090679,11.53647521,206.15,206.08,20.8]
[1760382090881,20.35647521,206.14,206.09,4.85224901]
[1760382091073,10.87647521,206.1,206.02,4.85389767]
[1760382091275,10.87647521,206.1,205.96,0.2]
[1760382091276,8.82,206.09,205.96,0.2]
[1760382091495,9.48,206.09,206.03,5.88175841]
[1760382091695,9.48,206.09,206.06,5.88175841]
[1760382091996,10.87647521,206.07,206.06,5.88175841]
[1760382092301,11.53647521,206.07,206.06,5.88175841]
[1760382092794,11.53647521,206.07,206.05,5.88175841]
[1760382093196,11.53647521,206.07,206.05,10.73485485]
[1760382093588,11.53647521,206.07,206.04,5.88175841]
[1760382093589,0.66,206.06,206.04,5.88175841]
[1760382093969,9.48,206.05,206.01,0.2]
[1760382094186,16.75823362,206.04,206.01,0.2]
[1760382094492,10.87647521,206.02,206.01,0.2]
[1760382094991,11.53647521,206.02,206.01,0.2]
[1760382096382,20.35647521,206.02,206.01,0.2]
[1760382100377,10.87647521,206.05,206.01,6.08175841]
[1760382100680,9.48,206.04,206.01,10.9358917]
[1760382100885,10.87647521,206.02,206.01,0.2]
[1760382101109,19.69647521,206.02,206.01,0.2]
[1760382101308,20.35647521,206.02,206.01,0.2]
[1760382103002,26.23823362,206.02,206.01,0.2]
[1760382104393,17.41823362,206.02,206.01,0.2]
[1760382104682,26.23823362,206.02,206.01,0.2]
[1760382105006,17.41823362,206.02,206.01,0.2]
[1760382105495,26.23823362,206.02,206.01,0.2]
[1760382105898,17.41823362,206.02,206.01,0.2]
[1760382106094,26.23823362,206.02,206.01,0.2]
[1760382107612,17.41823362,206.02,206.01,0.2]
[1760382107916,26.23823362,206.02,206.01,0.2]
[1760382108612,17.41823362,206.02,206.01,0.2]
[1760382108817,26.23823362,206.02,206.01,0.2]
[1760382109811,17.41823362,206.02,206.01,0.2]
[1760382110113,26.23823362,206.02,206.01,0.2]
[1760382111005,10.87647521,205.98,205.96,0.2]
[1760382111317,19.69647521,205.97,205.96,0.2]
[1760382111719,20.40647521,205.97,205.96,0.2]
[1760382111889,26.28823362,205.97,205.96,0.2]
[1760382114828,10.87647521,205.97,205.96,0.2]
[1760382115031,5.88175841,206.06,205.96,11.13707012]
[1760382115235,0.71,206.12,206.05,5.88175841]
[1760382115521,9.12699775,206.12,206.05,5.88175841]
[1760382115732,0.71,206.15,206.1,5.88175841]
[1760382115898,8.82,206.14,206.1,5.88175841]
[1760382116098,8.82,206.13,206.11,5.88175841]
[1760382116296,10.87647521,206.12,206.11,5.88175841]
[1760382116499,10.87647521,206.12,206.1,5.88175841]
[1760382116802,10.87647521,206.12,206.09,5.88175841]
[1760382117015,8.82,206.13,206.09,5.88175841]
[1760382117434,10.87647521,206.12,206.09,5.88175841]
[1760382117601,10.87647521,206.16,206.1,5.88175841]
[1760382117801,10.87647521,206.14,206.09,5.88175841]
[1760382118005,10.87647521,206.12,206.04,0.2]
[1760382118213,8.82,206.11,206.06,5.88175841]
[1760382118813,8.82,206.11,206.07,5.88175841]
[1760382119016,8.82,206.11,206.08,5.88175841]
[1760382119204,10.87647521,206.1,206.06,5.88175841]
[1760382119623,10.87647521,206.08,206.06,5.88175841]
[1760382119948,10.87647521,206.08,206.07,5.88175841]
[1760382120114,10.87647521,206.13,206.07,5.88175841]
[1760382120312,8.8,206.12,206.08,4.85248447]
[1760382120534,9.51,206.12,206.06,10.73449887]
[1760382121111,8.8,206.12,206.08,5.88175841]
[1760382121320,10.87647521,206.13,206.07,5.88175841]
[1760382121321,10.87647521,206.1,206.07,5.88175841]
[1760382121830,10.87647521,206.1,206.08,5.88175841]
[1760382122134,10.87647521,206.1,206.07,5.88175841]
[1760382122332,10.87647521,206.1,206.08,5.88175841]
[1760382122638,10.87647521,206.13,206.08,5.88175841]
[1760382122850,10.87647521,206.13,206.11,5.88175841]
[1760382123017,10.87647521,206.13,206.12,5.88175841]
[1760382123207,10.87647521,206.13,206.1,5.88175841]
[1760382123402,10.87647521,206.11,206.1,5.88175841]
[1760382124033,10.87647521,206.11,206.07,16.9843439]
[1760382124215,8.8,206.1,206.07,22.86610231]
[1760382124418,19.67647521,206.09,206.08,5.88175841]
[1760382124926,10.87647521,206.09,206.08,5.88175841]
[1760382125124,19.67647521,206.09,206.08,5.88175841]
[1760382125524,10.87647521,206.09,206.08,10.73424288]
[1760382125711,19.67647521,206.09,206.08,10.73424288]
[1760382126454,19.67647521,206.09,206.06,12.13222953]
[1760382126455,10.87647521,206.08,206.0,20.8]
[1760382126623,10.87647521,206.06,206.05,5.88175841]
[1760382126818,19.67647521,206.06,206.05,5.88175841]
[1760382127041,8.8,206.06,206.05,5.88175841]
[1760382127855,8.8,206.06,205.96,0.2]
[1760382128023,142.17647521,206.05,205.99,5.88175841]
[1760382128229,10.87647521,206.03,205.99,5.88175841]
[1760382128423,10.87647521,206.01,205.97,4.85507598]
[1760382128618,10.87647521,205.99,205.96,0.2]
[1760382128823,0.71,206.0,205.96,0.2]
[1760382129050,10.87647521,205.99,205.98,5.88175841]
[1760382129345,19.67647521,205.99,205.98,5.88175841]
[1760382129549,10.87647521,206.01,205.98,5.88175841]
[1760382129739,19.99999999,206.12,205.96,5.05524908]
[1760382129740,10.87647521,206.07,206.0,5.88175841]
[1760382129924,10.87647521,206.05,206.03,5.88175841]
[1760382130423,0.71,206.11,206.04,5.88175841]
[1760382130645,19.67647521,206.1,206.07,5.88175841]
[1760382130948,20.38647521,206.1,206.06,5.88175841]
[1760382131627,16.75823362,206.08,205.96,17.19352835]
[1760382131824,10.87647521,206.02,205.96,5.05524908]
[1760382132119,8.8,206.01,205.96,5.05524908]
[1760382132340,8.8,206.01,205.96,6.08175841]
[1760382132341,10.87647521,206.0,205.96,6.08175841]
[1760382132541,10.87647521,205.98,205.97,5.88175841]
[1760382132730,10.87647521,205.98,205.96,0.2]
[1760382132731,19.67647521,205.98,205.96,10.93699902]
[1760382133133,937.0,207.69,205.97,5.88175841]
[1760382133134,10.87647521,206.01,205.97,5.88175841]
[1760382133427,10.87647521,206.06,206.0,5.88175841]
[1760382133642,11.58647521,206.04,206.01,5.88175841]
[1760382133851,10.87647521,206.02,206.0,10.73606816]
[1760382134050,19.67647521,206.01,206.0,10.73606816]
[1760382134728,19.67647521,206.01,206.0,4.85430975]
[1760382135028,10.87647521,206.0,205.97,4.85507598]
[1760382135233,10.87647521,205.98,205.97,4.85507598]
[1760382135456,10.87647521,206.05,205.97,16.99276593]
[1760382135627,8.8,206.04,205.97,16.99276593]
[1760382136443,9.51,206.04,206.0,10.73611308]
[1760382136653,9.51,206.04,206.01,5.88175841]
[1760382136844,9.51,206.04,206.02,5.88175841]
[1760382137034,19.67647521,206.03,206.02,5.88175841]
[1760382138453,10.87647521,206.03,206.02,10.73565608]
[1760382138663,10.87647521,206.09,206.02,10.73565608]
[1760382138958,10.87647521,206.09,206.07,5.88175841]
[1760382138959,150.97647521,206.08,206.07,5.88175841]
[1760382139139,151.68647521,206.08,206.07,5.88175841]
[1760382139465,142.88647521,206.08,206.07,5.88175841]
[1760382139648,151.68647521,206.08,206.07,5.88175841]
[1760382140146,151.68647521,206.08,206.06,5.88175841]
[1760382140332,131.3,206.08,206.07,5.88175841]
[1760382140534,19.67647521,206.08,206.07,5.88175841]
[1760382140946,10.87647521,206.14,206.07,5.88175841]
[1760382141265,0.68,206.18,206.13,5.88175841]
[1760382141459,10.87647521,206.16,206.14,3.91743794]
[1760382141630,11.55647521,206.16,206.14,3.91743794]
[1760382141834,2.53397832,206.2,206.15,3.91743794]
[1760382142056,8.8,206.19,206.09,20.8]
[1760382142226,8.8,206.18,206.09,20.8]
[1760382142428,10.87647521,206.21,206.1,16.98204754]
[1760382142661,8.8,206.2,206.1,16.98204754]
[1760382142841,0.68,206.25,206.13,20.8]
[1760382143160,8.8,206.21,206.13,20.8]
[1760382143330,0.68,206.25,206.2,3.91743794]
[1760382143540,10.87647521,206.26,206.21,3.91743794]
[1760382143736,19.85443889,206.22,206.21,3.91743794]
[1760382144341,19.85443889,206.22,206.21,8.76686328]
[1760382145571,11.05443889,206.22,206.21,8.76686328]
[1760382145859,19.85443889,206.22,206.21,8.76686328]
[1760382147349,11.05443889,206.22,206.21,8.76686328]
[1760382147558,19.85443889,206.22,206.21,8.76686328]
[1760382147761,0.1,206.29,206.21,45.13755334]
[1760382147939,0.1,206.29,206.28,3.91743794]
[1760382148140,10.87647521,206.28,206.26,3.91743794]
[1760382148449,8.8,206.27,206.21,41.2201154]
[1760382148653,0.1,206.29,206.26,3.91743794]
[1760382148844,0.1,206.29,206.27,3.91743794]
[1760382148845,10.97647521,206.29,206.27,3.91743794]
[1760382149044,8.8,206.28,206.27,3.91743794]
[1760382149350,11.65647521,206.29,206.27,3.91743794]
[1760382149549,11.65647521,206.29,206.28,3.91743794]
[1760382149752,20.45647521,206.29,206.28,3.91743794]
[1760382150443,20.45647521,206.29,206.23,12.12211405]
[1760382150635,0.68,206.28,206.22,3.91743794]
[1760382150834,14.79391315,206.26,206.2,4.84966052]
[1760382151056,10.87647521,206.24,206.2,8.76709846]
[1760382151235,10.87647521,206.22,206.2,8.76709846]
[1760382151554,19.67647521,206.21,206.2,8.76709846]
[1760382151759,19.67647521,206.21,206.2,4.84966052]
[1760382151981,19.67647521,206.21,206.17,12.12587945]
[1760382151982,20.35647521,206.21,206.08,19.99999999]
[1760382152135,11.55647521,206.2,206.13,16.04511874]
[1760382152483,10.87647521,206.18,206.14,3.91743794]
[1760382152635,9.48,206.17,206.14,3.91743794]
[1760382152957,10.87647521,206.16,206.11,4.85177817]
[1760382153133,10.87647521,206.14,206.09,3.91743794]
[1760382153334,10.87647521,206.12,206.05,29.11845571]
[1760382153546,10.87647521,206.1,206.08,3.91743794]
[1760382153739,10.87647521,206.1,206.06,3.91743794]
[1760382153740,9.48,206.09,206.06,3.91743794]
[1760382154068,0.68,206.12,206.08,3.91743794]
[1760382154280,10.87647521,206.14,206.11,3.91743794]
[1760382154432,10.87647521,206.12,206.1,3.91743794]
[1760382154630,8.8,206.11,206.1,3.91743794]
[1760382154834,8.8,206.11,206.09,3.91743794]
[1760382155235,9.48,206.11,206.1,4.85201358]
[1760382155766,19.67647521,206.11,206.1,4.85201358]
[1760382155942,10.87647521,206.1,206.08,4.85229661]
[1760382156261,19.67647521,206.09,206.08,4.85229661]
[1760382156477,20.35647521,206.09,206.08,4.85229661]
[1760382156845,10.87647521,206.08,206.05,3.91743794]
[1760382157046,8.8,206.07,206.04,4.85342651]
[1760382157247,8.8,206.07,206.06,8.77039338]
[1760382157487,20.8,206.18,206.06,20.902782]
[1760382157668,10.87647521,206.12,206.09,3.91743794]
[1760382157855,10.87647521,206.1,206.06,16.98534406]
[1760382158068,8.8,206.09,206.06,16.98534406]
[1760382159061,8.8,206.09,206.08,3.91743794]
[1760382159446,0.68,206.13,206.09,4.85224901]
[1760382159648,20.35647521,206.12,206.09,8.76968695]
[1760382159848,10.87647521,206.1,206.09,8.76968695]
[1760382160061,19.67647521,206.1,206.09,8.76968695]
[1760382160666,19.67647521,206.1,206.02,41.25771253]
[1760382160855,20.35647521,206.1,206.06,3.91743794]
[1760382161046,0.68,206.09,206.06,3.91743794]
[1760382161247,8.8,206.08,206.07,3.91743794]
[1760382161582,0.68,206.16,206.07,3.91743794]
[1760382161884,0.68,206.19,206.07,20.8]
[1760382162055,8.8,206.17,206.15,3.91743794]
[1760382162384,0.68,206.22,206.16,3.91743794]
[1760382162551,0.68,206.22,206.07,20.8]
[1760382162552,10.87647521,206.2,206.19,3.91743794]
[1760382162878,10.87647521,206.2,206.18,8.7673559]
[1760382163077,19.67647521,206.19,206.18,4.84991796]
[1760382163280,19.67647521,206.19,206.18,8.7673559]
[1760382163662,19.67647521,206.19,206.17,4.85035691]
[1760382163663,10.87647521,206.18,206.17,4.85035691]
[1760382163879,11.55647521,206.18,206.17,4.85035691]
[1760382164588,8.8,206.19,206.17,4.85035691]
[1760382164789,0.68,206.22,206.18,3.91743794]
[1760382165004,10.87647521,206.21,206.12,41.23811371]
[1760382165291,11.50334228,206.24,206.15,20.8]
[1760382165503,8.8,206.23,206.15,20.8]
[1760382166100,20.35647521,206.23,206.15,20.8]
[1760382166307,20.35647521,206.23,206.2,3.91743794]
[1760382166899,20.35647521,206.23,206.15,20.8]
[1760382166900,11.55647521,206.23,206.21,8.76686328]
[1760382167083,9.48,206.22,206.21,8.76686328]
[1760382167588,20.35647521,206.22,206.21,8.76686328]
[1760382167898,20.35647521,206.22,206.21,4.84942534]
[1760382168481,10.87647521,206.21,206.16,16.9767425]
[1760382168684,8.8,206.2,206.19,3.91743794]
[1760382169297,8.8,206.2,206.19,8.76733366]
[1760382170609,8.78,206.27,206.22,20.8]
[1760382171300,8.78,206.27,206.26,20.8]
[1760382171708,8.78,206.27,206.26,24.71743794]
[1760382173605,8.78,206.27,206.26,29.56568772]
[1760382174179,8.78,206.28,206.26,41.68631217]
[1760382174377,8.78,206.28,206.27,2.91743794]
[1760382174601,8.88,206.29,206.27,2.91743794]
[1760382174804,8.88,206.29,206.28,3.91743794]
[1760382175678,8.88,206.29,206.28,8.76521765]
[1760382177012,0.1,206.29,206.28,8.76521765]
[1760382177210,8.88,206.29,206.28,8.76521765]
[1760382177714,13.45743794,206.29,206.11,24.25889088]
[1760382177878,10.87647521,206.25,206.2,3.91743794]
[1760382178075,8.78,206.24,206.16,3.91743794]
[1760382178480,11.53647521,206.23,206.11,41.24011449]
[1760382178711,8.78,206.24,206.11,41.24011449]
[1760382178712,10.87647521,206.21,206.11,41.24011449]
[1760382178886,8.78,206.2,206.18,3.91743794]
[1760382179087,9.44,206.2,206.14,20.8]
[1760382179291,9.44,206.2,206.18,3.91743794]
[1760382179792,9.44,206.2,206.19,4.84989572]
[1760382180182,8.78,206.2,206.19,4.84989572]
[1760382180506,9.44,206.2,206.19,4.84989572]
[1760382181603,10.87647521,206.19,206.14,16.97846565]
[1760382181791,10.87647521,206.17,206.13,3.91743794]
[1760382181985,8.78,206.16,206.13,3.91743794]
[1760382182188,8.78,206.16,206.14,3.91743794]
[1760382182391,9.44,206.16,206.14,3.91743794]
[1760382182594,9.44,206.16,206.15,3.91743794]
[1760382182792,9.44,206.16,206.14,3.91743794]
[1760382182993,0.66,206.15,206.14,8.76851002]
[1760382183190,10.87647521,206.17,206.14,8.76851002]
[1760382183383,8.78,206.15,206.14,16.97875229]
[1760382184488,8.78,206.15,206.14,20.89619023]
[1760382185595,11.83907806,206.18,206.14,20.89619023]
[1760382185798,11.83907806,206.18,206.17,3.91743794]
[1760382185994,20.61907806,206.18,206.17,3.91743794]
[1760382187612,21.27907806,206.18,206.15,3.91743794]
[1760382187810,0.66,206.17,206.15,3.91743794]
[1760382188107,11.83907806,206.18,206.16,3.91743794]
[1760382188302,8.78,206.17,206.14,12.12768021]
[1760382188612,8.78,206.17,206.16,3.91743794]
[1760382188794,8.78,206.17,206.16,8.76803941]
[1760382189190,11.83907806,206.18,206.16,8.76803941]
[1760382189405,11.83907806,206.18,206.17,3.91743794]
[1760382190209,11.83907806,206.18,206.17,20.8]
[1760382190414,11.83907806,206.18,206.17,24.71743794]
[1760382190611,131.3,206.28,206.19,20.8]
[1760382190802,20.31647521,206.27,206.26,4.84824978]
[1760382191899,20.31647521,206.27,206.26,8.76568772]
[1760382192096,0.66,206.31,206.26,20.88631217]
[1760382192307,0.66,206.31,206.26,16.96887423]
[1760382192308,8.78,206.28,206.26,16.96887423]
[1760382192717,0.66,206.31,206.26,16.96887423]
[1760382193026,8.78,206.28,206.23,62.01509032]
[1760382193430,8.78,206.28,206.27,3.91743794]
[1760382194225,8.78,206.28,206.23,62.01509032]
[1760382194424,8.78,206.28,206.27,8.76545267]
[1760382196625,8.88,206.3,206.27,8.76545267]
[1760382196830,8.88,206.3,206.28,3.91743794]
[1760382197919,0.1,206.3,206.29,20.8]
[1760382198104,8.88,206.3,206.29,24.71743794]
[1760382198510,8.88,206.3,206.29,29.56498265]
[1760382199417,0.1,206.34,206.29,41.68384444]
[1760382199728,8.78,206.33,206.29,37.7664065]
[1760382199913,8.78,206.32,206.29,37.7664065]
[1760382200228,8.78,206.33,206.29,37.7664065]
[1760382200427,8.78,206.33,206.32,3.91743794]
[1760382200645,8.78,206.33,206.32,8.7642778]
[1760382200807,1e-08,206.34,206.33,20.8]
[1760382201124,1e-08,206.34,206.33,24.71743794]
[1760382201503,0.67000001,206.34,206.33,3.91743794]
[1760382201708,0.67000001,206.34,206.32,4.84683986]
[1760382201709,0.67000001,206.34,206.32,8.7642778]
[1760382201925,8.78,206.33,206.32,4.84683986]
[1760382202129,8.78,206.33,206.32,8.7642778]
[1760382202920,9.45,206.33,206.32,8.7642778]
[1760382203122,8.78,206.33,206.32,8.7642778]
[1760382203516,8.78,206.33,206.32,10.71181548]
[1760382204836,9.45,206.33,206.32,4.84683986]
[1760382205219,10.87647521,206.32,206.29,4.84754471]
[1760382205420,0.67,206.31,206.29,5.86497562]
[1760382205620,0.67,206.31,206.3,5.86497562]
[1760382205822,0.67,206.3,206.27,16.96793227]
[1760382206020,0.67,206.3,206.29,5.86497562]
[1760382206732,9.45,206.3,206.29,5.86497562]
[1760382207034,9.45,206.3,206.29,10.71252033]
[1760382207536,8.78,206.3,206.29,10.71252033]
[1760382208116,9.45,206.3,206.26,25.64824978]
[1760382208315,11.54647521,206.29,206.19,4.84989572]
[1760382208539,10.87647521,206.27,206.19,4.84989572]
[1760382208742,10.87647521,206.25,206.19,4.84989572]
[1760382208913,10.87647521,206.23,206.19,4.84989572]
[1760382209117,10.87647521,206.21,206.19,4.84989572]
[1760382209329,11.54647521,206.2,206.19,10.71487134]
[1760382209537,11.54647521,206.2,206.16,4.85060147]
[1760382209738,9.45,206.19,206.18,5.86497562]
[1760382210120,9.45,206.19,206.18,10.71510657]
[1760382211423,0.67,206.19,206.18,10.71510657]
[1760382211624,9.45,206.19,206.18,10.71510657]
[1760382212650,9.45,206.19,206.18,4.85013095]
[1760382212952,9.45,206.19,206.18,5.86497562]
[1760382213151,9.45,206.19,206.16,5.86497562]
[1760382213452,10.87647521,206.17,206.13,5.86497562]
[1760382213658,10.87647521,206.15,206.13,5.86497562]
[1760382213941,10.87647521,206.13,206.11,5.05177808]
[1760382214141,31.67647521,206.19,206.12,5.86497562]
[1760382214348,10.87647521,206.17,206.12,5.86497562]
[1760382214552,8.78,206.16,206.12,5.86497562]
[1760382214736,9.45,206.16,206.12,5.86497562]
[1760382214921,10.87647521,206.14,206.13,5.86497562]
[1760382215119,20.32647521,206.14,206.13,5.86497562]
[1760382215328,2.0,211.71,206.14,4.85107208]
[1760382215329,0.67,206.27,206.14,4.85107208]
[1760382215544,22.06438471,206.4,206.26,5.86497562]
[1760382215545,0.67,206.29,206.26,5.86497562]
[1760382215723,9.45,206.28,206.26,5.86497562]
[1760382215924,20.32647521,206.27,206.21,20.8]
[1760382216148,10.87647521,206.25,206.14,16.97875229]
[1760382216340,10.87647521,206.23,206.14,16.97875229]
[1760382216556,10.87647521,206.21,206.14,16.97875229]
[1760382216857,8.78,206.2,206.14,16.97875229]
[1760382217032,19.65647521,206.2,206.19,5.86497562]
[1760382217233,20.32647521,206.2,206.19,5.86497562]
[1760382217455,11.54647521,206.2,206.19,10.71487134]
[1760382217656,12.9854408,206.21,206.19,10.71487134]
[1760382217857,8.78,206.2,206.19,10.71487134]
[1760382219130,8.78,206.2,206.19,5.86497562]
[1760382219743,20.32647521,206.2,206.17,4.8503662]
[1760382219945,19.65647521,206.2,206.19,5.86497562]
[1760382220137,12.9854408,206.21,206.19,5.86497562]
[1760382220343,12.9854408,206.21,206.2,5.86497562]
[1760382220646,21.7654408,206.21,206.2,5.86497562]
[1760382221048,21.7654408,206.21,206.17,16.9762817]
[1760382221352,32.64191601,206.21,206.2,10.71463614]
[1760382221736,33.31191601,206.21,206.2,10.71463614]
[1760382222134,24.53191601,206.21,206.2,10.71463614]
[1760382222334,33.31191601,206.21,206.2,10.71463614]
[1760382223058,33.31191601,206.21,206.17,12.1259155]
[1760382223059,10.87647521,206.2,206.17,16.9762817]
[1760382223249,9.45,206.19,206.17,4.8503662]
[1760382223549,11.54647521,206.18,206.17,4.8503662]
[1760382223749,10.87647521,206.18,206.17,4.8503662]
[1760382224160,10.87647521,206.18,206.17,10.71534182]
[1760382224457,10.87647521,206.2,206.17,22.84125732]
[1760382224641,8.78,206.19,206.17,16.9762817]
[1760382225157,8.78,206.19,206.17,12.1259155]
[1760382225860,19.65647521,206.19,206.18,5.86497562]
[1760382226244,12.9854408,206.21,206.18,22.84043395]
[1760382226448,23.86191601,206.21,206.2,5.86497562]
[1760382226752,32.64191601,206.21,206.2,5.86497562]
[1760382227131,12.9854408,206.21,206.2,6.56497562]
[1760382227335,21.7654408,206.21,206.2,6.56497562]
[1760382227746,21.7654408,206.21,206.2,5.86497562]
[1760382228463,10.87647521,206.26,206.2,29.41376306]
[1760382228647,8.78,206.25,206.22,5.86497562]
[1760382229061,10.87647521,206.26,206.22,5.86497562]
[1760382229255,8.78,206.25,206.22,5.86497562]
[1760382229850,11.58647521,206.26,206.24,5.86497562]
[1760382230050,8.78,206.25,206.22,5.86497562]
[1760382230557,8.78,206.25,206.23,4.84895505]
[1760382231170,8.78,206.25,206.24,5.86497562]
[1760382231458,10.87647521,206.24,206.23,4.84895505]
[1760382231760,24.43281549,206.24,206.2,25.64966052]
[1760382231951,10.87647521,206.22,206.2,25.64966052]
[1760382232255,0.71,206.31,206.23,20.8]
[1760382232459,19.65647521,206.3,206.23,20.8]
[1760382232665,19.65647521,206.3,206.29,10.71252033]
[1760382233037,10.87647521,206.31,206.29,10.71252033]
[1760382233263,8.78,206.3,206.29,4.84754471]
[1760382233562,9.49,206.3,206.29,4.84754471]
[1760382233943,8.78,206.3,206.24,16.97051977]
[1760382234459,8.78,206.3,206.29,5.86497562]
[1760382234853,9.49,206.3,206.24,16.97051977]
[1760382235080,10.87647521,206.28,206.24,16.97051977]
[1760382235247,0.71,206.28,206.24,16.97051977]
[1760382235463,8.78,206.27,206.24,16.97051977]
[1760382235643,8.78,206.26,206.24,16.97051977]
[1760382235843,1e-08,206.34,206.25,0.7]
[1760382236058,10.87647521,206.32,206.24,16.97051977]
[1760382236368,10.87647521,206.3,206.24,16.97051977]
[1760382236667,8.78,206.29,206.24,16.97051977]
[1760382236962,8.78,206.29,206.24,17.67051977]
[1760382237167,8.78,206.28,206.24,17.67051977]
[1760382237470,8.78,206.28,206.27,10.71299035]
[1760382237961,8.78,206.28,206.27,22.83302719]
[1760382238168,9.49,206.28,206.27,16.96805157]
[1760382238343,9.49,206.28,206.27,22.83302719]
[1760382238543,8.78,206.28,206.27,22.83302719]
[1760382239244,10.87647521,206.27,206.2,24.24830261]
[1760382239445,9.49,206.26,206.23,20.8]
[1760382239666,11.58647521,206.25,206.21,20.8]
[1760382239855,8.78,206.26,206.18,16.97545833]
[1760382239856,10.87647521,206.23,206.18,16.97545833]
[1760382240166,10.87647521,206.23,206.21,20.8]
[1760382240167,8.78,206.22,206.21,20.8]
[1760382240546,8.78,206.22,206.21,33.22995124]
[1760382240969,11.58647521,206.3,206.29,5.86497562]
[1760382241172,11.58647521,206.3,206.21,20.8]
[1760382241478,10.87647521,206.28,206.22,5.86497562]
[1760382241641,10.87647521,206.26,206.23,4.84895505]
[1760382241842,0.71,206.25,206.23,4.84895505]
[1760382242060,0.71,206.28,206.23,4.84895505]
[1760382242249,10.87647521,206.33,206.23,4.84895505]
[1760382242250,10.87647521,206.26,206.23,4.84895505]
[1760382242448,10.87647521,206.26,206.25,5.86497562]
[1760382242659,20.80000001,206.34,206.25,5.86497562]
[1760382242660,10.87647521,206.32,206.25,5.86497562]
[1760382242864,10.87647521,206.29,206.25,5.86497562]
[1760382243055,20.8,206.3,206.28,5.86497562]
[1760382243361,10.87647521,206.29,206.28,5.86497562]
[1760382243664,11.58647521,206.29,206.27,5.86497562]
[1760382243854,10.87647521,206.29,206.28,5.86497562]
[1760382244161,10.87647521,206.32,206.19,4.84989572]
[1760382244366,10.87647521,206.32,206.26,5.86497562]
[1760382244568,0.71,206.31,206.26,5.86497562]
[1760382244748,10.87647521,206.29,206.24,5.86497562]
[1760382245091,10.87647521,206.27,206.19,4.84989572]
[1760382245274,10.87647521,206.25,206.21,5.86497562]
[1760382245570,10.87647521,206.23,206.21,5.86497562]
[1760382245862,13.24501286,206.25,206.21,5.86497562]
[1760382245863,11.58647521,206.22,206.21,5.86497562]
[1760382246844,11.58647521,206.22,206.21,10.71440096]
[1760382247367,11.58647521,206.22,206.21,5.86497562]
[1760382248377,11.58647521,206.22,206.2,4.84961887]
[1760382248672,11.58647521,206.22,206.18,12.1251802]
[1760382248673,10.87647521,206.21,206.1,24.25992855]
[1760382248972,10.87647521,206.21,206.16,5.86497562]
[1760382249144,10.87647521,206.21,206.15,5.86497562]
[1760382249145,10.87647521,206.19,206.15,5.86497562]
[1760382249340,10.87647521,206.17,206.14,5.86497562]
[1760382249571,10.87647521,206.15,206.06,12.13186758]
[1760382249746,10.87647521,206.13,206.1,10.71677551]
[1760382250064,10.87647521,206.13,206.12,5.86497562]
[1760382250260,10.87647521,206.18,206.12,5.86497562]